Cogmind - Beta 14 *** ADVENTURER MODE // 2024.12.27 @ 21:54:13 // Winter2019/RPGLIKE Player: MoYuYu Result: Destroyed by D-53 Grenadier with Mini Grenade Launcher Performance ------------- Evolutions (0) 0 Regions Visited (2) 400 Robots Destroyed (20) 100 Value Destroyed (290) 290 Prototype IDs (2) 40 Alien Tech Used (0) 0 Bonus (0) 0 TOTAL SCORE: 830 Bonus ------- None Cogmind --------- Core Integrity 0/600 Matter 293/300 Energy 261/265 System Corruption 0% Temperature Cool (2) Movement Walking (120) Location -10/Mines Parts ------- > --- POWER (2) -------- Backup Power I Improved Ion Engine > --- PROPULSION (3) --- Aluminum Leg Aluminum Leg > --- UTILITY (3) ------ Visual Processing Unit Seismic Detector Light Armor Plating > --- WEAPON (3) ------- Assault Rifle Shotgun Heavy Hammer > --- INVENTORY (1) ---- Grenade Launcher Peak State ------------ > --- POWER ------------ Ion Engine Improved Ion Engine > --- PROPULSION ------- Aluminum Leg Aluminum Leg > --- UTILITY ---------- Visual Processing Unit Seismic Detector Light Armor Plating > --- WEAPON ----------- Assault Rifle Shotgun Heavy Hammer > --- INVENTORY -------- Grenade Launcher [Rating: 14] Favorites ----------- Power Improved Ion Engine Engine Improved Ion Engine Propulsion Aluminum Leg Treads Light Treads Leg Aluminum Leg Utility Visual Processing Unit Device Seismic Detector Processor Visual Processing Unit Protection Light Armor Plating Weapon Assault Rifle Energy Gun Medium Laser Ballistic Gun Assault Rifle Impact Weapon Heavy Hammer Build | -11 -10 -10 ------- Run | Yrd Mat Min Slots Evolved 7 | 4 3 . Power 1 | 1 . . Propulsion 2 | 1 1 . Utility 2 | 1 1 . Weapon 2 | 1 1 . Parts Attached 19 | 9 10 . Power 3 | 2 1 . Engine 3 | 2 1 . Core . | . . . Reactor . | . . . Propulsion 4 | 4 . . Treads 2 | 2 . . Leg 2 | 2 . . Wheel . | . . . Hover . | . . . Flight . | . . . Utility 5 | . 5 . Device 3 | . 3 . Storage . | . . . Processor 1 | . 1 . Hackware . | . . . Protection 1 | . 1 . Artifact . | . . . Weapon 7 | 3 4 . Energy Gun 2 | 2 . . Energy Cannon . | . . . Ballistic Gun 4 | 1 3 . Ballistic Cannon . | . . . Launcher . | . . . Special Weapon . | . . . Impact Weapon 1 | . 1 . Slashing Weapon . | . . . Piercing Weapon . | . . . Special Melee Weapon . | . . . Unidentified Prototypes . | . . . Parts Lost . | . . . Power . | . . . Propulsion . | . . . Utility . | . . . Weapon . | . . . Highest Loss Streak . | . . . To Critical Strikes . | . . . Average Slot Usage (%) 95 | . 96 90 Engine 21 | . 22 18 Leg 21 | . 22 18 Device 11 | . 11 9 Processor 9 | . 9 9 Protection 5 | . 4 9 Ballistic Gun 14 | . 13 18 Impact Weapon 9 | . 10 9 Peak Build Rating 14 | 6 14 14 Average Rating 11 | 3 11 14 On Entrance 6 | . 6 14 Naked Turns . | . . . Heaviest Build 24 | 11 24 20 Greatest Support 25 | 20 25 25 Greatest Overweight (x) 3 | 3 1 . Average Overweight (x) . | . . . Largest Inventory Capacity 1 | . 1 1 Average Capacity . | . . 1 Most Carried 1 | . 1 1 Average Carried . | . . 1 Final Capacity 1 | . 1 1 Final Carried 1 | . 1 1 Class Distribution -------------------- 100% | Mutant Dominant Class ---------------- Mutant | -10/Materials Mutant | -10/Mines Resources | -11 -10 -10 ----------- Run | Yrd Mat Min Matter Collected 538 | 216 280 42 Remotely . | . . . Salvage Created 338 | . 264 74 Parts 25 | . 20 5 Haulers Intercepted . | . . . Recyclers Shooed . | . . . Parts Field Recycled . | . . . Retrieved Matter . | . . . Parts Self-Destructed . | . . . Prevented . | . . . Kills | -11 -10 -10 ------- Run | Yrd Mat Min Combat Hostiles Destroyed 19 | . 14 5 Melee 8 | . 6 2 Guns 9 | . 6 3 Classes Destroyed 4 | . 3 1 Watcher 3 | . 3 . Swarmer 14 | . 11 3 Grunt 3 | . 3 . Assembled 2 | . . 2 Best Kill Streak 6 | . 6 3 Combat Bots Only 5 | . 5 3 Max Kills in Single Turn 2 | . 1 2 Gunslinging 1 | . . 1 Exploded . | . . . Melee 1 | . 1 1 Uniques/NPCs Destroyed . | . . . Combat | -11 -10 -10 -------- Run | Yrd Mat Min Hostile Shots Fired 135 | . 99 36 Missed 37 | . 29 8 Damage Taken 820 | . 445 375 Core 611 | . 343 268 Absorbed by Shields . | . . . Redirected to Core 479 | . 281 198 Ignored by Resistances 262 | . 150 112 Regen/Repaired (Parts) 11 | . 11 . Core Remaining (%) 100 | 100 . . Volleys Fired 45 | . 38 7 Largest 2 | . 2 2 Hottest 70 | . 70 43 Shots Fired 64 | . 50 14 Gun 64 | . 50 14 Cannon . | . . . Launcher . | . . . Special . | . . . Kinetic 58 | . 44 14 Thermal 6 | . 6 . Explosive . | . . . Electromagnetic . | . . . Robot Hit Streak 8 | . 8 4 Robot Miss Streak 5 | . 3 5 Penetration Max . | . . . Secondary Targets 1 | . . 1 Max Gunslinging Chain 1 | . . 1 Shots Hit Robots 55 | . 43 12 Core Hits 23 | . 16 7 Critical Kills 2 | . . 2 Critical Parts Destroyed 5 | . 4 1 Critical Strikes 7 | . 4 3 Destroy 2 | . . 2 Smash 5 | . 4 1 Melee Attacks 21 | . 17 4 Impact 21 | . 17 4 Slashing . | . . . Piercing . | . . . Sneak Attacks . | . . . Combat Hostiles . | . . . Follow-up Attacks . | . . . Damage Inflicted 1250 | . 956 294 Guns 467 | . 338 129 Cannons . | . . . Explosions . | . . . Melee 783 | . 618 165 Ramming . | . . . Kinetic 430 | . 301 129 Thermal 37 | . 37 . Explosive . | . . . Electromagnetic . | . . . Impact 783 | . 618 165 Slashing . | . . . Piercing . | . . . Highest Corruption . | . . . Average Corruption . | . . . Corruption Purged . | . . . Corruption Blocked . | . . . Overload Shots . | . . . Overflow Damage 336 | . 306 30 Projectiles . | . . . Explosions . | . . . Melee 336 | . 306 30 Knockbacks 1 | . 1 . Impact 1 | . 1 . Kinetic . | . . . Secondary . | . . . Self-Inflicted Damage . | . . . Shots . | . . . Rammed . | . . . Targets Rammed . | . . . Kicked . | . . . Crushed . | . . . Highest Temperature 180 | . 180 23 Average Temperature 38 | . 49 7 Received Heat Transfer 124 | . 84 40 Siege Activations . | . . . Robots Corrupted 3 | . 3 . Combat Hostiles 2 | . 2 . Parts Fried 3 | . 3 . Impact Corruptions 15 | . 13 2 Robots Melted . | . . . Combat Hostiles . | . . . Parts Melted . | . . . Heat Transferred 111 | . 111 . Parts Sabotaged . | . . . Parts Stolen . | . . . Parts Stripped . | . . . Power Chain Reactions . | . . . Alert | -11 -10 -10 ------- Run | Yrd Mat Min Peak Influence 147 | . 147 85 Initial . | . . . Average 42 | . 44 72 Maximum Alert Level . | . . . Low Security (%) 100 | 100 100 100 Level 1 . | . . . Level 2 . | . . . Level 3 . | . . . Level 4 . | . . . Level 5 . | . . . High Security . | . . . Max Security . | . . . Squads Dispatched 1 | . 1 . Investigation 1 | . 1 . Extermination . | . . . Reinforcement . | . . . Assault . | . . . Garrison . | . . . Intercept . | . . . Searches Triggered . | . . . Construction Impeded . | . . . Haulers Reinforced . | . . . Active Scanning Responses . | . . . Cargo Convoy Interrupts . | . . . Stealth | -11 -10 -10 --------- Run | Yrd Mat Min Distress Signals 1 | . 1 . Communications Jammed . | . . . Distress Signals . | . . . Times Spotted 54 | . 20 34 Peak Tracking Total 19 | . 7 19 Tactical Retreats 5 | . 3 2 Traps | -11 -10 -10 ------- Run | Yrd Mat Min Traps Triggered 1 | . 1 . Indirectly . | . . . Trap Hack Attempts . | . . . Triggered . | . . . Disarmed . | . . . Reprogrammed . | . . . Reused . | . . . Traps Extracted . | . . . Installed . | . . . Triggered . | . . . Machines | -11 -10 -10 ---------- Run | Yrd Mat Min Machines Disabled . | . . . Max in Single Turn . | . . . Machines Repaired . | . . . Machines Dismantled . | . . . Machines Sabotaged . | . . . Overloaded Fab Kills . | . . . Hacking | -11 -10 -10 --------- Run | Yrd Mat Min Machines Accessed 10 | . 10 . Terminals 7 | . 7 . Fabricators . | . . . Repair Stations 1 | . 1 . Recycling Units 2 | . 2 . Scanalyzers . | . . . Garrison Access . | . . . Total Hacks 21 | . 21 . Successful 16 | . 16 . Failed 5 | . 5 . Catastrophic . | . . . Database Lockouts . | . . . Manual . | . . . Terminals 16 | . 16 . Fabricators . | . . . Repair Stations 3 | . 3 . Recycling Units 2 | . 2 . Scanalyzers . | . . . Garrison Access . | . . . Terminal Hacks 11 | . 11 . Prototype ID Bank 1 | . 1 . Emergency Access Points 1 | . 1 . Alert Level 4 | . 4 . Unreport Threat 1 | . 1 . Locate Traps 1 | . 1 . Dispatch Records 1 | . 1 . Zone Layout 2 | . 2 . Fabricator Hacks . | . . . Repair Station Hacks 3 | . 3 . Scan Component 1 | . 1 . Repair 1 | . 1 . Refit 1 | . 1 . Recycling Unit Hacks 2 | . 2 . Process 1 | . 1 . Report Inventory 1 | . 1 . Scanalyzer . | . . . Garrison Access Hacks . | . . . Unauthorized Hacks . | . . . Terminals . | . . . Fabricators . | . . . Repair Stations . | . . . Recycling Units . | . . . Scanalyzers . | . . . Garrison Access . | . . . Data Cores Recovered . | . . . Used . | . . . Hacking Detections 6 | . 6 . Full Trace Events 1 | . 1 . Feedback Events . | . . . Feedback Blocked . | . . . Robot Schematics Acquired . | . . . Robots Built . | . . . Authchips . | . . . Time . | . . . Total Robot Build Rating . | . . . Part Schematics Acquired . | . . . Parts Built . | . . . Authchips . | . . . Time . | . . . Total Part Build Rating . | . . . Parts Repaired 1 | . 1 . Time 26 | . 26 . Parts Recycled . | . . . Recycled Matter 5 | . 5 . Retrieved Matter . | . . . Retrieved Components . | . . . Parts Scanalyzed . | . . . Part Schematics Acquired . | . . . Parts Damaged . | . . . Bothacking | -11 -10 -10 ------------ Run | Yrd Mat Min Used RIF Installer . | . . . Robots Hacked . | . . . Non-combat . | . . . Combat . | . . . Robot Hacks Applied . | . . . Relay Couplers Released . | . . . Fabnet Peak Effective % . | . . . Robots Rewired . | . . . Allies Hacked . | . . . Hacks Repelled . | . . . Allies | -11 -10 -10 -------- Run | Yrd Mat Min Total Allies . | . . . Largest Group . | . . . Highest-Rated Group . | . . . Highest-Rated Ally . | . . . Total Orders . | . . . Ally Attacks . | . . . Total Damage . | . . . Kills . | . . . Allies Corrupted . | . . . Allies Melted . | . . . Intel | -11 -10 -10 ------- Run | Yrd Mat Min Robot Analysis Total . | . . . Derelict Logs Recovered 2 | . . 2 Drone Launches . | . . . Drone Recoveries . | . . . Exploration | -11 -10 -10 ------------- Run | Yrd Mat Min Turns Passed 1797 | 172 1433 192 Spaces Moved 1207 | 102 973 132 Core 50 | 50 . . Treads 1 | 1 . . Legs 1156 | 51 973 132 Wheels . | . . . Hover . | . . . Flight . | . . . Fastest Speed 50 | 50 120 120 Average Speed 120 | 102 121 120 Slowest Speed 200 | 200 190 120 Overloaded Moves . | . . . Propulsion Burnouts . | . . . Robots Hopped . | . . . Cave-ins Triggered . | . . . Exploration Rate (%) 41 | 7 91 25 Regions Visited 2 Branch Regions 1 Pre-discovered Areas 2 | . . 2 Known Exits Taken . | . . . Unknown Exits Taken 2 | 1 1 . Scrap Searched 1 | . . 1 Spaces Dug . | . . . Terrain Destroyed . | . . . Melee . | . . . Projectile . | . . . AOE . | . . . Terrain Rammed . | . . . Walls Destroyed . | . . . Machines Disabled . | . . . Actions | -11 -10 -10 --------- Run | Yrd Mat Min Total 1451 | 166 1140 145 Wait 151 | 53 96 2 Move 1205 | 101 972 132 Hop . | . . . Pick Up 1 | . 1 . Fast Attach 19 | 9 10 . Attach . | . . . Detach . | . . . Swap . | . . . Drop 9 | 3 6 . Fire 45 | . 38 7 Melee 21 | . 17 4 Ram . | . . . Kick . | . . . Crush . | . . . Escape Stasis . | . . . Rewire . | . . . Trap . | . . . Miscellaneous . | . . . Route ------- -11/Scrapyard -10/Materials (discovered 4 exits: [*Mat x3] / [*Min]) -10/Mines (discovered 1 exit: [*Mat]) History --------- Turn | Location | Event 28 | -11/Scrapyard | Discovered new exit (range 15) 41 | -11/Scrapyard | Upgraded with Weapon slot (x1) 80 | -11/Scrapyard | Upgraded with Power slot (x1) 80 | -11/Scrapyard | Upgraded with Propulsion slot (x1) 80 | -11/Scrapyard | Upgraded with Utility slot (x1) 173 | -11/Scrapyard | Entered Materials 293 | -10/Materials | Discovered new exit (range 16) 309 | -10/Materials | Build established: Mutant 729 | -10/Materials | Discovered new exit (range 15) 898 | -10/Materials | Upgraded with Utility slot (x1) 953 | -10/Materials | Core integrity fell below 50% 960 | -10/Materials | Reached level 2 1051 | -10/Materials | Discovered new exit (range 18) 1175 | -10/Materials | Discovered new exit (range 17) 1232 | -10/Materials | Upgraded with Propulsion slot (x1) 1232 | -10/Materials | Upgraded with Weapon slot (x1) 1504 | -10/Materials | Repaired Ion Engine? 1606 | -10/Materials | Entered Mines 1634 | -10/Mines | A weapon hastily lodged in a ceiling crevice suddenly fell to the ground 1674 | -10/Mines | Discovered new exit (range 4) 1716 | -10/Mines | Assembled infested the area 1784 | -10/Mines | Learned location of Storage (-9) 1793 | -10/Mines | Core integrity fell below 20% 1798 | -10/Mines | Destroyed by D-53 Grenadier with Mini Grenade Launcher Last Messages --------------- 01738_ as-38804 destroyed. 01763_ T-07 Excavator system corrupted by crushing effect. 01769_ as-23168 suffers critical hit (Destroy). 01769_ Destroyed Asb. F-torch. 01772_ as-23168 suffers critical hit (Smash). 01772_ as-23168 destroyed. 01775_ Acquired 28 matter. 01784_ Acquired derelict log, extracted data. World map updated: -9/Storage. 01792_ C-30 ARC bursts open, deploying its payload. 01792_ D-53 Grenadier unfolds itself. 01792_ as-99720 destroyed. 01794_ Destroyed Asb. Blade. 01794_ as-81563 system corrupted by crushing effect. 01794_ as-81563 destroyed. 01796_ as-85621 destroyed. 01798_ The unstable cave ceiling collapses. Map ----- +----------------------------------------------------+ | ??????????????????????# #??????? | | ???????????????????#### """ #??????? | | ???????????????????# """ #??????? | | ?????????????????### # < """ #??????? | | ????????????????## # #??????? | | ???????????????## # """ """ #??????? | | ??????????????## ## """ """ #??????? | | ???????####??## ### """ """ #??????? | | ??????## #### ## #?# #??????? | | ??????# ## ### #?#############??????? | | ??????# ##?# #????????????????????? | | ??????## #??# #????????????????????? | | ???????### #??# #????????????????????? | | ?????????# ##??#%#????????????????????? | | ?????????# ####???# #??####???############ | | ?????????# #??????# #?## ##??# # | | ?????????# #??????# #?# #### """ # | | ?????????# #??????# #?# [%% """ # | | ?????????# #??????#d### ### = """ # | | ?????????# #???##?# =% / #?# %% # | | ?????????# #??## ##% ## #?# [ """ # | | ?????????# #?## d ## #?# = """ # | | ?????????#%#?# # ##?# % """ # | | ????######%#?# # ##??# * # | | ????# #??# # #???######### ## | | ????# ######??# @ # #???????????? #? | | ????# #??????# a # #?????????????#? | | ????# #??????## # ## #??????????????? | | ???? %#???????# # ### ??????????????? | | ???? *!???????# #####?####??????????????? | | ???? =%???????# ????????????????????????? | | ???? =??????? ????????????????????????? | | ???? ?????? a????????????????????????? | | ???? ?????? ????????????????????????? | | ???# ????? ????????????????????????? | | ???## ?????# ????????????????????????? | | ????? ?????# a ????????????????????????? | | ????? ????# a##????????????????????????? | | ????? ????# ??????????????????????????? | | ?????# "????# ??????????????????????????? | | ?????? ????? ??????????????????????????? | | ?????? ????? ???????????????????????????? | | ?????????????????????????????????????????? | | ?????????????????????????????????????????? | | ?????????????????????????????????????????? | | ?????????????????????????????????????????? | | ?????????????????????????????????????????? | | ?????????????????????????????????????????? | | ?????????????????????????????????????????? | | ?????????????????????????????????????????? | +----------------------------------------------------+ Best States ------------- Heat Dissipation 25 Energy Generation 17 Energy Capacity 415 Matter Stores 300 Matter Capacity 300 Sight Range 18 Terrain Scan Density 10 ECM Strength 2 Armor Coverage 150 Resistance: KI 20 Resistance: TH 20 Resistance: EX 20 Resistance: EM 20 Resistance: I 20 Resistance: S 20 Resistance: P 20 Evasion (%) 55 Offensive Hacking 10 Item Schematics ----------------- None Robot Schematics ------------------ None Fabricated ------------ Nothing Alien Tech Used ----------------- None Achievements -------------- Storm Trooper Challenges ------------ None RPGLIKE | -11 -10 -10 --------- Run | Yrd Mat Min Levels Raised 1 | . 1 . XP Earned 6555 | 4000 1705 850 XP Spent 4750 | 2000 2750 . Upgrades 9 | 4 5 . Power Slot 1 | 1 . . Propulsion Slot 2 | 1 1 . Utility Slot 2 | 1 1 . Weapon Slot 2 | 1 1 . Mass Support 1 | . 1 . Inventory Capacity 1 | . 1 . Protomatter Created 133 | . 118 15 Protomatter Decayed 167 | . 131 36 Game ------ Seed MolecularGuidanceFlamer Manual? 0 Play Time 00:49:21 Cumulative 9.4 hours Start 2024.12.27 @ 20:58:59 End 2024.12.27 @ 21:54:13 Sessions 1 Manual Loads 0 Difficulty Adventurer Special Mode Winter2019/RPGLIKE Game No. 10 Rogue 4 Adventurer 1 Explorer 5 Win Type - Total 0 Types 0/0/0/0/0/0/0/0/0 Lore% 9 Gallery% 15 Achievement% 14 Wizard Run 0 Options --------- Layout 2 ASCII 0 Keyboard 0 Movement Mouse Keybinds 0 Fullscreen 1 Font 20/Terminus Map View 50x44 Zoom Use 11% Tactical HUD 1 Map Filters NONE Filters NONE Steam 1 RUN: caa8e7a8-835f-456a-ac02-44ce75879f68